[Event "Titled Tuesday Blitz March 29 Early 2022"]
[White "Xiong, Jeffery"]
[Black "Gareyev, Timur"]
[WhiteFideId "2047640"]
[BlackFideId "14200937"]
[WhiteElo "2727"]
[BlackElo "2582"]
[Result "1-0"]
[Round "10"]
[TimeControl "180+1"]
[Date "2022.03.29"]
[WhiteClock "0:00:49"]
[BlackClock "0:00:04"]

1. e4 {[%clk 0:03:00]}  e5 {[%clk 0:02:57]} 2. Nf3 {[%clk 0:03:01]}  Nc6 {[%clk 0:02:56]} 3. Nc3 {[%clk 0:03:01]}  Nf6 {[%clk 0:02:55]} 4. d4 {[%clk 0:03:01]}  exd4 {[%clk 0:02:53]} 5. Nxd4 {[%clk 0:03:02]}  Bb4 {[%clk 0:02:53]} 6. Nxc6 {[%clk 0:03:02]}  bxc6 {[%clk 0:02:53]} 7. Bd3 {[%clk 0:03:03]}  d5 {[%clk 0:02:53]} 8. exd5 {[%clk 0:03:04]}  cxd5 {[%clk 0:02:52]} 9. O-O {[%clk 0:03:04]}  O-O {[%clk 0:02:50]} 10. h3 {[%clk 0:03:04]}  c6 {[%clk 0:02:46]} 11. Qf3 {[%clk 0:03:04]}  Bd6 {[%clk 0:02:40]} 12. Bf4 {[%clk 0:03:04]}  Rb8 {[%clk 0:02:39]} 13. b3 {[%clk 0:03:04]}  Rb4 {[%clk 0:02:38]} 14. Ne2 {[%clk 0:03:04]}  Bxf4 {[%clk 0:02:32]} 15. Nxf4 {[%clk 0:03:05]}  Qd6 {[%clk 0:02:31]} 16. c4 {[%clk 0:03:05]}  a5 {[%clk 0:02:28]} 17. Rfd1 {[%clk 0:03:02]}  Be6 {[%clk 0:02:19]} 18. Rac1 {[%clk 0:02:44]}  a4 {[%clk 0:02:17]} 19. Bc2 {[%clk 0:02:44]}  axb3 {[%clk 0:01:39]} 20. Bxb3 {[%clk 0:02:45]}  h6 {[%clk 0:01:21]} 21. Rc2 {[%clk 0:02:37]}  Rd8 {[%clk 0:00:49]} 22. Rcd2 {[%clk 0:02:33]}  Qc5 {[%clk 0:00:44]} 23. Nd3 {[%clk 0:02:32]}  Qb6 {[%clk 0:00:39]} 24. Nxb4 {[%clk 0:02:30]}  Qxb4 {[%clk 0:00:40]} 25. cxd5 {[%clk 0:02:27]}  cxd5 {[%clk 0:00:40]} 26. Rd4 {[%clk 0:02:27]}  Qc5 {[%clk 0:00:37]} 27. Qe3 {[%clk 0:02:18]}  Qa5 {[%clk 0:00:36]} 28. Ra4 {[%clk 0:02:12]}  Qc7 {[%clk 0:00:34]} 29. Ra7 {[%clk 0:02:07]}  Qb8 {[%clk 0:00:34]} 30. Qc5 {[%clk 0:01:57]}  Rc8 {[%clk 0:00:29]} 31. Qd4 {[%clk 0:01:56]}  Ne4 {[%clk 0:00:27]} 32. Ra5 {[%clk 0:01:49]}  Nc3 {[%clk 0:00:27]} 33. Re1 {[%clk 0:01:46]}  Qc7 {[%clk 0:00:19]} 34. Ra7 {[%clk 0:01:44]}  Qb8 {[%clk 0:00:18]} 35. Ra6 {[%clk 0:01:06]}  Qb5 {[%clk 0:00:17]} 36. Qb6 {[%clk 0:01:00]}  Qd3 {[%clk 0:00:12]} 37. Rxe6 {[%clk 0:00:49]}  fxe6 {[%clk 0:00:11]} 38. Qxe6+ {[%clk 0:00:49]}  Kh7 {[%clk 0:00:09]} 39. Qxc8 {[%clk 0:00:49]}  Qb1+ {[%clk 0:00:03]} 40. Kh2 {[%clk 0:00:49]}  Ne2 {[%clk 0:00:04]} 41. Bc2+ {[%clk 0:00:49]} 1-0


[Site "https://www.chess.com"]

[Event "Titled Tuesday Blitz March 29 Early 2022"]
[White "Xu, Yi"]
[Black "Tsyhanchuk, Stanislav"]
[WhiteFideId "8605564"]
[BlackFideId "13505130"]
[WhiteElo "2471"]
[BlackElo "2078"]
[Result "1-0"]
[Round "10"]
[TimeControl "180+1"]
[Date "2022.03.29"]
[WhiteClock "0:01:02"]
[BlackClock "0:00:19"]

1. e4 {[%clk 0:03:00]}  c5 {[%clk 0:02:57]} 2. Nf3 {[%clk 0:03:00]}  Nc6 {[%clk 0:02:57]} 3. Bb5 {[%clk 0:03:00]}  g6 {[%clk 0:02:57]} 4. O-O {[%clk 0:02:59]}  Bg7 {[%clk 0:02:58]} 5. Re1 {[%clk 0:02:59]}  Nh6 {[%clk 0:02:56]} 6. c3 {[%clk 0:02:57]}  f5 {[%clk 0:02:54]} 7. e5 {[%clk 0:02:53]}  O-O {[%clk 0:02:53]} 8. d4 {[%clk 0:02:53]}  e6 {[%clk 0:02:52]} 9. dxc5 {[%clk 0:02:43]}  Nf7 {[%clk 0:02:51]} 10. Bxc6 {[%clk 0:02:43]}  bxc6 {[%clk 0:02:51]} 11. Nbd2 {[%clk 0:02:29]}  Ba6 {[%clk 0:02:47]} 12. Qa4 {[%clk 0:02:26]}  Bb5 {[%clk 0:02:39]} 13. Qa3 {[%clk 0:02:15]}  g5 {[%clk 0:02:37]} 14. c4 {[%clk 0:02:13]}  g4 {[%clk 0:02:33]} 15. cxb5 {[%clk 0:02:05]}  gxf3 {[%clk 0:02:32]} 16. Nxf3 {[%clk 0:02:04]}  cxb5 {[%clk 0:02:33]} 17. Bf4 {[%clk 0:02:03]}  Kh8 {[%clk 0:02:28]} 18. Rad1 {[%clk 0:02:02]}  a6 {[%clk 0:02:24]} 19. c6 {[%clk 0:01:58]}  Ra7 {[%clk 0:02:19]} 20. Be3 {[%clk 0:01:55]}  Ra8 {[%clk 0:01:53]} 21. Rxd7 {[%clk 0:01:53]}  Qc8 {[%clk 0:01:54]} 22. Qc5 {[%clk 0:01:43]}  Qe8 {[%clk 0:01:24]} 23. Red1 {[%clk 0:01:38]}  Rg8 {[%clk 0:01:20]} 24. c7 {[%clk 0:01:37]}  Bf8 {[%clk 0:01:16]} 25. Qc6 {[%clk 0:01:34]}  Bg7 {[%clk 0:00:56]} 26. Bf4 {[%clk 0:01:30]}  b4 {[%clk 0:00:53]} 27. Qb6 {[%clk 0:01:23]}  a5 {[%clk 0:00:49]} 28. h3 {[%clk 0:01:21]}  Rc8 {[%clk 0:00:41]} 29. Qxa5 {[%clk 0:01:17]}  Bf8 {[%clk 0:00:40]} 30. a3 {[%clk 0:01:05]}  bxa3 {[%clk 0:00:35]} 31. bxa3 {[%clk 0:01:06]}  Bg7 {[%clk 0:00:35]} 32. Qb6 {[%clk 0:01:03]}  Rf8 {[%clk 0:00:28]} 33. a4 {[%clk 0:01:02]}  Rg8 {[%clk 0:00:28]} 34. a5 {[%clk 0:01:02]}  Rf8 {[%clk 0:00:29]} 35. a6 {[%clk 0:01:03]}  Rg8 {[%clk 0:00:30]} 36. a7 {[%clk 0:01:03]}  h6 {[%clk 0:00:23]} 37. Qb8 {[%clk 0:01:03]}  Rf8 {[%clk 0:00:19]} 38. a8=Q {[%clk 0:01:02]} 1-0


[Site "https://www.chess.com"]

[Event "Titled Tuesday Blitz March 29 Early 2022"]
[White "Zhigalko, Sergei"]
[Black "Seo, Jung Min"]
[WhiteFideId "13502956"]
[BlackFideId "1734687"]
[WhiteElo "2662"]
[BlackElo "2401"]
[Result "1-0"]
[Round "10"]
[TimeControl "180+1"]
[Date "2022.03.29"]
[WhiteClock "0:01:47"]
[BlackClock "0:02:11"]

1. e4 {[%clk 0:02:57]}  e5 {[%clk 0:03:00]} 2. Nf3 {[%clk 0:02:57]}  Nc6 {[%clk 0:03:00]} 3. Bc4 {[%clk 0:02:56]}  Nf6 {[%clk 0:02:58]} 4. d3 {[%clk 0:02:55]}  h6 {[%clk 0:02:57]} 5. O-O {[%clk 0:02:55]}  d6 {[%clk 0:02:56]} 6. c3 {[%clk 0:02:54]}  g5 {[%clk 0:02:56]} 7. Re1 {[%clk 0:02:52]}  Bg7 {[%clk 0:02:56]} 8. Nbd2 {[%clk 0:02:49]}  Qe7 {[%clk 0:02:52]} 9. Bb3 {[%clk 0:02:39]}  Be6 {[%clk 0:02:50]} 10. Nc4 {[%clk 0:02:39]}  Nh7 {[%clk 0:02:46]} 11. Ne3 {[%clk 0:02:38]}  O-O {[%clk 0:02:37]} 12. h3 {[%clk 0:02:16]}  Na5 {[%clk 0:02:36]} 13. Bc2 {[%clk 0:02:13]}  Kh8 {[%clk 0:02:29]} 14. d4 {[%clk 0:02:11]}  Nc4 {[%clk 0:02:29]} 15. Nf5 {[%clk 0:02:08]}  Bxf5 {[%clk 0:02:27]} 16. exf5 {[%clk 0:02:08]}  Rae8 {[%clk 0:02:22]} 17. Qd3 {[%clk 0:01:55]}  Nb6 {[%clk 0:02:18]} 18. f6 {[%clk 0:01:49]}  Nxf6 {[%clk 0:02:16]} 19. dxe5 {[%clk 0:01:49]}  dxe5 {[%clk 0:02:15]} 20. Nxe5 {[%clk 0:01:49]}  Qd6 {[%clk 0:02:11]} 21. Nxf7+ {[%clk 0:01:47]} 1-0


[Site "https://www.chess.com"]

[Event "Titled Tuesday Blitz March 29 Early 2022"]
[White "Aaditya Dhingra"]
[Black "Tregubov, Pavel V."]
[WhiteFideId "25678191"]
[BlackFideId "4115341"]
[WhiteElo "1849"]
[BlackElo "2341"]
[Result "1-0"]
[Round "11"]
[TimeControl "180+1"]
[Date "2022.03.29"]
[WhiteClock "0:00:24"]
[BlackClock "0:01:04"]

1. e4 {[%clk 0:03:00]}  e6 {[%clk 0:02:56]} 2. d4 {[%clk 0:02:59]}  d5 {[%clk 0:02:56]} 3. Nc3 {[%clk 0:03:00]}  Bb4 {[%clk 0:02:56]} 4. e5 {[%clk 0:03:00]}  c5 {[%clk 0:02:55]} 5. a3 {[%clk 0:03:00]}  Ba5 {[%clk 0:02:56]} 6. b4 {[%clk 0:02:59]}  cxd4 {[%clk 0:02:55]} 7. Nb5 {[%clk 0:02:57]}  Bc7 {[%clk 0:02:54]} 8. f4 {[%clk 0:02:57]}  Bd7 {[%clk 0:02:54]} 9. Nf3 {[%clk 0:02:55]}  Bxb5 {[%clk 0:02:51]} 10. Bxb5+ {[%clk 0:02:55]}  Nc6 {[%clk 0:02:52]} 11. O-O {[%clk 0:02:51]}  Ne7 {[%clk 0:02:51]} 12. Bd3 {[%clk 0:02:49]}  a6 {[%clk 0:02:44]} 13. Kh1 {[%clk 0:02:41]}  h6 {[%clk 0:02:38]} 14. Bb2 {[%clk 0:02:39]}  Bb6 {[%clk 0:02:34]} 15. g4 {[%clk 0:02:25]}  h5 {[%clk 0:02:30]} 16. g5 {[%clk 0:02:16]}  g6 {[%clk 0:02:27]} 17. Qd2 {[%clk 0:02:10]}  Rc8 {[%clk 0:02:26]} 18. a4 {[%clk 0:02:07]}  Qc7 {[%clk 0:02:13]} 19. b5 {[%clk 0:02:01]}  axb5 {[%clk 0:01:56]} 20. axb5 {[%clk 0:02:00]}  Na5 {[%clk 0:01:56]} 21. Bxd4 {[%clk 0:01:38]}  Bxd4 {[%clk 0:01:46]} 22. Nxd4 {[%clk 0:01:37]}  Nc4 {[%clk 0:01:46]} 23. Bxc4 {[%clk 0:01:37]}  Qxc4 {[%clk 0:01:46]} 24. Rfb1 {[%clk 0:01:29]}  O-O {[%clk 0:01:44]} 25. Ra7 {[%clk 0:01:26]}  Rc7 {[%clk 0:01:31]} 26. Qd3 {[%clk 0:01:12]}  Qc5 {[%clk 0:01:26]} 27. b6 {[%clk 0:01:11]}  Rd7 {[%clk 0:01:27]} 28. Rb5 {[%clk 0:01:09]}  Qc8 {[%clk 0:01:13]} 29. Qa3 {[%clk 0:00:46]}  Nc6 {[%clk 0:01:07]} 30. Rc5 {[%clk 0:00:44]}  Nxa7 {[%clk 0:01:05]} 31. Rxc8 {[%clk 0:00:23]}  Nxc8 {[%clk 0:01:04]} 32. Qc5 {[%clk 0:00:24]} 1-0


[Site "https://www.chess.com"]

[Event "Titled Tuesday Blitz March 29 Early 2022"]
[White "Aditya Mittal"]
[Black "Chen, Qi b"]
[WhiteFideId "35042025"]
[BlackFideId "8614733"]
[WhiteElo "2303"]
[BlackElo "2432"]
[Result "0-1"]
[Round "11"]
[TimeControl "180+1"]
[Date "2022.03.29"]
[WhiteClock "0:00:01"]
[BlackClock "0:00:16"]

1. d4 {[%clk 0:03:00]}  Nf6 {[%clk 0:02:59]} 2. c4 {[%clk 0:03:01]}  e6 {[%clk 0:02:58]} 3. Nf3 {[%clk 0:03:01]}  d5 {[%clk 0:02:57]} 4. Nc3 {[%clk 0:03:02]}  Nbd7 {[%clk 0:02:57]} 5. cxd5 {[%clk 0:03:01]}  exd5 {[%clk 0:02:56]} 6. Bg5 {[%clk 0:03:02]}  c6 {[%clk 0:02:55]} 7. e3 {[%clk 0:03:02]}  h6 {[%clk 0:02:53]} 8. Bh4 {[%clk 0:03:02]}  g5 {[%clk 0:02:54]} 9. Bg3 {[%clk 0:03:02]}  Nh5 {[%clk 0:02:54]} 10. Qc2 {[%clk 0:02:59]}  Nxg3 {[%clk 0:02:54]} 11. hxg3 {[%clk 0:03:00]}  Bg7 {[%clk 0:02:55]} 12. Bd3 {[%clk 0:02:59]}  Nb6 {[%clk 0:02:55]} 13. O-O-O {[%clk 0:02:52]}  Be6 {[%clk 0:02:54]} 14. Kb1 {[%clk 0:02:50]}  Qc7 {[%clk 0:02:52]} 15. Bf5 {[%clk 0:02:48]}  O-O-O {[%clk 0:02:49]} 16. g4 {[%clk 0:02:47]}  Kb8 {[%clk 0:02:49]} 17. Rh3 {[%clk 0:02:42]}  Nc4 {[%clk 0:02:47]} 18. Rdh1 {[%clk 0:02:40]}  Nd6 {[%clk 0:02:44]} 19. Bxe6 {[%clk 0:02:07]}  fxe6 {[%clk 0:02:45]} 20. Nd2 {[%clk 0:01:56]}  Rhf8 {[%clk 0:02:38]} 21. f3 {[%clk 0:01:56]}  Qe7 {[%clk 0:02:38]} 22. Ne2 {[%clk 0:01:56]}  e5 {[%clk 0:02:36]} 23. dxe5 {[%clk 0:01:29]}  Qxe5 {[%clk 0:02:36]} 24. f4 {[%clk 0:01:18]}  Qe7 {[%clk 0:02:30]} 25. f5 {[%clk 0:00:58]}  Rc8 {[%clk 0:02:29]} 26. Ng3 {[%clk 0:00:56]}  c5 {[%clk 0:02:15]} 27. e4 {[%clk 0:00:52]}  c4 {[%clk 0:02:09]} 28. Nh5 {[%clk 0:00:48]}  Be5 {[%clk 0:01:53]} 29. exd5 {[%clk 0:00:45]}  c3 {[%clk 0:01:53]} 30. bxc3 {[%clk 0:00:45]}  Nb5 {[%clk 0:01:52]} 31. Qa4 {[%clk 0:00:34]}  Nxc3+ {[%clk 0:01:44]} 32. Rxc3 {[%clk 0:00:35]}  Rxc3 {[%clk 0:01:39]} 33. Nf3 {[%clk 0:00:29]}  Bd6 {[%clk 0:00:49]} 34. Re1 {[%clk 0:00:28]}  Qd8 {[%clk 0:00:49]} 35. Qd4 {[%clk 0:00:23]}  Qa5 {[%clk 0:00:38]} 36. Ng7 {[%clk 0:00:22]}  Rfc8 {[%clk 0:00:37]} 37. Ne8 {[%clk 0:00:17]}  Rxf3 {[%clk 0:00:30]} 38. Rd1 {[%clk 0:00:03]}  Rf4 {[%clk 0:00:30]} 39. Qe3 {[%clk 0:00:01]}  Rb4+ {[%clk 0:00:21]} 40. Ka1 {[%clk 0:00:01]}  Rc2 {[%clk 0:00:16]} 0-1


[Site "https://www.chess.com"]

[Event "Titled Tuesday Blitz March 29 Early 2022"]
[White "Agasarov, Benik"]
[Black "Lauridsen, Jesper Morch"]
[WhiteFideId "13314823"]
[BlackFideId "1401890"]
[WhiteElo "2525"]
[BlackElo "2327"]
[Result "1-0"]
[Round "11"]
[TimeControl "180+1"]
[Date "2022.03.30"]
[WhiteClock "0:00:27"]
[BlackClock "0:00:01"]

1. d4 {[%clk 0:03:00]}  Nf6 {[%clk 0:02:56]} 2. Bg5 {[%clk 0:02:59]}  Ne4 {[%clk 0:02:55]} 3. Bf4 {[%clk 0:02:58]}  d5 {[%clk 0:02:54]} 4. f3 {[%clk 0:02:58]}  Nf6 {[%clk 0:02:54]} 5. Nc3 {[%clk 0:02:58]}  e6 {[%clk 0:02:53]} 6. e4 {[%clk 0:02:55]}  Bb4 {[%clk 0:02:51]} 7. Bd3 {[%clk 0:02:52]}  c5 {[%clk 0:02:44]} 8. a3 {[%clk 0:02:51]}  Bxc3+ {[%clk 0:02:29]} 9. bxc3 {[%clk 0:02:48]}  c4 {[%clk 0:02:07]} 10. Be2 {[%clk 0:02:46]}  dxe4 {[%clk 0:02:08]} 11. Bxc4 {[%clk 0:02:40]}  Qa5 {[%clk 0:01:59]} 12. Qd2 {[%clk 0:02:25]}  O-O {[%clk 0:01:52]} 13. Be5 {[%clk 0:02:21]}  Nc6 {[%clk 0:01:43]} 14. Bxf6 {[%clk 0:02:18]}  gxf6 {[%clk 0:01:42]} 15. fxe4 {[%clk 0:02:17]}  b5 {[%clk 0:01:30]} 16. Bd3 {[%clk 0:02:16]}  Bb7 {[%clk 0:01:25]} 17. Ne2 {[%clk 0:02:11]}  Rad8 {[%clk 0:01:20]} 18. O-O {[%clk 0:02:11]}  Nxd4 {[%clk 0:01:09]} 19. Nxd4 {[%clk 0:02:08]}  Rxd4 {[%clk 0:01:09]} 20. Rxf6 {[%clk 0:02:07]}  Qb6 {[%clk 0:00:51]} 21. Kh1 {[%clk 0:01:54]}  Rxe4 {[%clk 0:00:46]} 22. Bxe4 {[%clk 0:01:47]}  Bxe4 {[%clk 0:00:46]} 23. Qg5+ {[%clk 0:01:46]}  Bg6 {[%clk 0:00:45]} 24. h4 {[%clk 0:01:43]}  Kh8 {[%clk 0:00:32]} 25. h5 {[%clk 0:01:41]}  Bxc2 {[%clk 0:00:32]} 26. Rf4 {[%clk 0:01:28]}  f5 {[%clk 0:00:18]} 27. h6 {[%clk 0:01:23]}  Qb7 {[%clk 0:00:18]} 28. Rd4 {[%clk 0:01:18]}  Be4 {[%clk 0:00:17]} 29. Rd8 {[%clk 0:01:17]}  Bxg2+ {[%clk 0:00:16]} 30. Kh2 {[%clk 0:01:15]}  Qc7+ {[%clk 0:00:16]} 31. Kxg2 {[%clk 0:01:12]}  Qc6+ {[%clk 0:00:10]} 32. Kg1 {[%clk 0:01:00]}  Qb6+ {[%clk 0:00:10]} 33. Rd4 {[%clk 0:00:59]}  Rg8 {[%clk 0:00:08]} 34. Qxg8+ {[%clk 0:00:55]}  Kxg8 {[%clk 0:00:09]} 35. Re1 {[%clk 0:00:53]}  Kf7 {[%clk 0:00:08]} 36. Kf1 {[%clk 0:00:45]}  Qc5 {[%clk 0:00:08]} 37. Rd7+ {[%clk 0:00:42]}  Kf6 {[%clk 0:00:08]} 38. Rxh7 {[%clk 0:00:41]}  Qc4+ {[%clk 0:00:08]} 39. Re2 {[%clk 0:00:41]}  f4 {[%clk 0:00:06]} 40. Rh8 {[%clk 0:00:38]}  Kf7 {[%clk 0:00:02]} 41. h7 {[%clk 0:00:37]}  Kg7 {[%clk 0:00:01]} 42. Rf8 {[%clk 0:00:30]}  Kxh7 {[%clk 0:00:01]} 43. Ke1 {[%clk 0:00:28]}  e5 {[%clk 0:00:01]} 44. Rh2+ {[%clk 0:00:28]}  Kg6 {[%clk 0:00:01]} 45. Rg2+ {[%clk 0:00:27]}  Kh6 {[%clk 0:00:01]} 46. Rh8# {[%clk 0:00:27]} 1-0


[Site "https://www.chess.com"]

[Event "Titled Tuesday Blitz March 29 Early 2022"]
[White "Alinasab, Mobina"]
[Black "Skliarov, Viktor"]
[WhiteFideId "12528897"]
[BlackFideId "14106736"]
[WhiteElo "2476"]
[BlackElo "2618"]
[Result "0-1"]
[Round "11"]
[TimeControl "180+1"]
[Date "2022.03.30"]
[WhiteClock "0:00:10"]
[BlackClock "0:00:19"]

1. e4 {[%clk 0:03:00]}  c5 {[%clk 0:02:58]} 2. Nf3 {[%clk 0:03:01]}  Nc6 {[%clk 0:02:58]} 3. d4 {[%clk 0:02:52]}  cxd4 {[%clk 0:02:58]} 4. Nxd4 {[%clk 0:02:53]}  Nf6 {[%clk 0:02:59]} 5. Nc3 {[%clk 0:02:54]}  e5 {[%clk 0:02:59]} 6. Ndb5 {[%clk 0:02:54]}  d6 {[%clk 0:03:00]} 7. Bg5 {[%clk 0:02:55]}  a6 {[%clk 0:03:00]} 8. Na3 {[%clk 0:02:52]}  b5 {[%clk 0:03:00]} 9. Bxf6 {[%clk 0:02:50]}  gxf6 {[%clk 0:03:01]} 10. Nd5 {[%clk 0:02:51]}  f5 {[%clk 0:03:01]} 11. Bd3 {[%clk 0:02:50]}  Be6 {[%clk 0:03:01]} 12. c4 {[%clk 0:02:50]}  Qa5+ {[%clk 0:03:01]} 13. Qd2 {[%clk 0:02:50]}  Qxd2+ {[%clk 0:03:02]} 14. Kxd2 {[%clk 0:02:51]}  Bh6+ {[%clk 0:03:02]} 15. Kd1 {[%clk 0:02:50]}  Bxd5 {[%clk 0:03:02]} 16. cxd5 {[%clk 0:02:47]}  Nb4 {[%clk 0:02:42]} 17. Bb1 {[%clk 0:02:28]}  Rc8 {[%clk 0:02:05]} 18. Ke2 {[%clk 0:02:27]}  Bc1 {[%clk 0:02:04]} 19. Nc2 {[%clk 0:02:07]}  Nxc2 {[%clk 0:00:25]} 20. Rxc1 {[%clk 0:02:03]}  Nd4+ {[%clk 0:00:25]} 21. Kd2 {[%clk 0:01:58]}  Rxc1 {[%clk 0:00:10]} 22. Kxc1 {[%clk 0:01:59]}  fxe4 {[%clk 0:00:11]} 23. Bxe4 {[%clk 0:01:56]}  f5 {[%clk 0:00:12]} 24. Bd3 {[%clk 0:01:56]}  e4 {[%clk 0:00:11]} 25. Bf1 {[%clk 0:01:56]}  Ke7 {[%clk 0:00:11]} 26. Kd2 {[%clk 0:01:50]}  Rc8 {[%clk 0:00:10]} 27. Rb1 {[%clk 0:01:35]}  Kf6 {[%clk 0:00:09]} 28. Ke3 {[%clk 0:01:19]}  Ke5 {[%clk 0:00:09]} 29. f4+ {[%clk 0:01:19]}  exf3 {[%clk 0:00:09]} 30. gxf3 {[%clk 0:01:19]}  f4+ {[%clk 0:00:08]} 31. Kd3 {[%clk 0:01:16]}  Nxf3 {[%clk 0:00:09]} 32. Bg2 {[%clk 0:01:10]}  Nh4 {[%clk 0:00:09]} 33. Be4 {[%clk 0:01:07]}  h6 {[%clk 0:00:09]} 34. Rg1 {[%clk 0:01:07]}  f3 {[%clk 0:00:05]} 35. Ke3 {[%clk 0:00:54]}  f2 {[%clk 0:00:05]} 36. Rf1 {[%clk 0:00:50]}  Rc4 {[%clk 0:00:05]} 37. Bh1 {[%clk 0:00:46]}  Rc2 {[%clk 0:00:04]} 38. Rxf2 {[%clk 0:00:36]}  Rxf2 {[%clk 0:00:04]} 39. Kxf2 {[%clk 0:00:37]}  Kf4 {[%clk 0:00:05]} 40. a3 {[%clk 0:00:34]}  Ng6 {[%clk 0:00:02]} 41. Bf3 {[%clk 0:00:31]}  Ne5 {[%clk 0:00:03]} 42. Be2 {[%clk 0:00:31]}  Nc4 {[%clk 0:00:02]} 43. a4 {[%clk 0:00:30]}  Nxb2 {[%clk 0:00:01]} 44. axb5 {[%clk 0:00:31]}  axb5 {[%clk 0:00:02]} 45. Bxb5 {[%clk 0:00:30]}  Nd1+ {[%clk 0:00:02]} 46. Kg2 {[%clk 0:00:24]}  Ne3+ {[%clk 0:00:03]} 47. Kh3 {[%clk 0:00:24]}  Nxd5 {[%clk 0:00:03]} 48. Kh4 {[%clk 0:00:23]}  Nf6 {[%clk 0:00:04]} 49. Kh3 {[%clk 0:00:18]}  d5 {[%clk 0:00:04]} 50. Kg2 {[%clk 0:00:16]}  Ke3 {[%clk 0:00:05]} 51. Kg3 {[%clk 0:00:15]}  d4 {[%clk 0:00:06]} 52. h4 {[%clk 0:00:11]}  d3 {[%clk 0:00:04]} 53. Ba4 {[%clk 0:00:09]}  d2 {[%clk 0:00:04]} 54. Bd1 {[%clk 0:00:07]}  Ne4+ {[%clk 0:00:04]} 55. Kg2 {[%clk 0:00:06]}  Nc3 {[%clk 0:00:04]} 56. Bc2 {[%clk 0:00:06]}  d1=Q {[%clk 0:00:03]} 57. Bxd1 {[%clk 0:00:07]}  Nxd1 {[%clk 0:00:04]} 58. Kg3 {[%clk 0:00:08]}  Nf2 {[%clk 0:00:04]} 59. h5 {[%clk 0:00:08]}  Ne4+ {[%clk 0:00:03]} 60. Kg4 {[%clk 0:00:08]}  Nd6 {[%clk 0:00:03]} 61. Kg3 {[%clk 0:00:06]}  Ke4 {[%clk 0:00:04]} 62. Kg4 {[%clk 0:00:06]}  Ke5 {[%clk 0:00:04]} 63. Kg3 {[%clk 0:00:05]}  Kf6 {[%clk 0:00:05]} 64. Kf4 {[%clk 0:00:05]}  Nf7 {[%clk 0:00:06]} 65. Kg4 {[%clk 0:00:05]}  Ne5+ {[%clk 0:00:07]} 66. Kf4 {[%clk 0:00:05]}  Nc4 {[%clk 0:00:07]} 67. Kg4 {[%clk 0:00:06]}  Nb6 {[%clk 0:00:08]} 68. Kf4 {[%clk 0:00:06]}  Nd5+ {[%clk 0:00:08]} 69. Kg4 {[%clk 0:00:07]}  Ke5 {[%clk 0:00:09]} 70. Kg3 {[%clk 0:00:05]}  Kf5 {[%clk 0:00:09]} 71. Kh4 {[%clk 0:00:03]}  Kf4 {[%clk 0:00:10]} 72. Kh3 {[%clk 0:00:03]}  Kg5 {[%clk 0:00:11]} 73. Kg3 {[%clk 0:00:04]}  Kxh5 {[%clk 0:00:12]} 74. Kh3 {[%clk 0:00:05]}  Kg5 {[%clk 0:00:13]} 75. Kg3 {[%clk 0:00:05]}  Nf6 {[%clk 0:00:14]} 76. Kh3 {[%clk 0:00:05]}  h5 {[%clk 0:00:15]} 77. Kg3 {[%clk 0:00:06]}  h4+ {[%clk 0:00:15]} 78. Kh3 {[%clk 0:00:07]}  Kh5 {[%clk 0:00:16]} 79. Kh2 {[%clk 0:00:07]}  Kg4 {[%clk 0:00:17]} 80. Kg2 {[%clk 0:00:08]}  h3+ {[%clk 0:00:18]} 81. Kh2 {[%clk 0:00:08]}  Kh4 {[%clk 0:00:18]} 82. Kh1 {[%clk 0:00:09]}  Kg3 {[%clk 0:00:18]} 83. Kg1 {[%clk 0:00:09]}  Ng4 {[%clk 0:00:19]} 84. Kh1 {[%clk 0:00:10]}  Nf2+ {[%clk 0:00:19]} 0-1


[Site "https://www.chess.com"]

[Event "Titled Tuesday Blitz March 29 Early 2022"]
[White "Baches Garcia, Guillermo"]
[Black "Polster, Christian"]
[WhiteFideId "2209764"]
[BlackFideId "12965081"]
[WhiteElo "2495"]
[BlackElo "2354"]
[Result "1-0"]
[Round "11"]
[TimeControl "180+1"]
[Date "2022.03.30"]
[WhiteClock "0:00:33"]
[BlackClock "0:00:02"]

1. e4 {[%clk 0:03:00]}  c5 {[%clk 0:02:55]} 2. Nf3 {[%clk 0:03:00]}  d6 {[%clk 0:02:55]} 3. d4 {[%clk 0:03:01]}  cxd4 {[%clk 0:02:56]} 4. Nxd4 {[%clk 0:03:01]}  Nf6 {[%clk 0:02:57]} 5. Nc3 {[%clk 0:03:02]}  a6 {[%clk 0:02:57]} 6. Bd3 {[%clk 0:03:02]}  e5 {[%clk 0:02:54]} 7. Nde2 {[%clk 0:03:02]}  Be6 {[%clk 0:02:42]} 8. f4 {[%clk 0:03:02]}  Qc7 {[%clk 0:02:31]} 9. O-O {[%clk 0:02:41]}  Nbd7 {[%clk 0:02:28]} 10. Kh1 {[%clk 0:02:30]}  b5 {[%clk 0:02:07]} 11. a3 {[%clk 0:02:22]}  Nc5 {[%clk 0:02:05]} 12. Ng3 {[%clk 0:02:08]}  Be7 {[%clk 0:01:56]} 13. f5 {[%clk 0:01:59]}  Bc4 {[%clk 0:01:47]} 14. Bxc4 {[%clk 0:01:59]}  bxc4 {[%clk 0:01:47]} 15. Nh5 {[%clk 0:01:54]}  Nxh5 {[%clk 0:01:08]} 16. Qxh5 {[%clk 0:01:54]}  Qc6 {[%clk 0:01:08]} 17. Qg4 {[%clk 0:01:43]}  g6 {[%clk 0:00:50]} 18. Nd5 {[%clk 0:01:27]}  Nd7 {[%clk 0:00:15]} 19. Bh6 {[%clk 0:01:08]}  Rg8 {[%clk 0:00:14]} 20. f6 {[%clk 0:01:01]}  Bd8 {[%clk 0:00:06]} 21. Rad1 {[%clk 0:01:01]}  Nb6 {[%clk 0:00:05]} 22. Be3 {[%clk 0:00:52]}  Rb8 {[%clk 0:00:04]} 23. Bxb6 {[%clk 0:00:51]}  Bxb6 {[%clk 0:00:05]} 24. Ne7 {[%clk 0:00:49]}  Qd7 {[%clk 0:00:03]} 25. Qxd7+ {[%clk 0:00:44]}  Kxd7 {[%clk 0:00:04]} 26. Nxg8 {[%clk 0:00:43]}  Rxg8 {[%clk 0:00:03]} 27. Rd5 {[%clk 0:00:43]}  Ke6 {[%clk 0:00:02]} 28. g3 {[%clk 0:00:37]}  Rb8 {[%clk 0:00:01]} 29. Rf3 {[%clk 0:00:35]}  Bc5 {[%clk 0:00:02]} 30. b3 {[%clk 0:00:33]} 1-0


[Site "https://www.chess.com"]

[Event "Titled Tuesday Blitz March 29 Early 2022"]
[White "Bortnyk, Olexandr"]
[Black "Demchenko, Anton"]
[WhiteFideId "14120828"]
[BlackFideId "4160258"]
[WhiteElo "2723"]
[BlackElo "2539"]
[Result "1-0"]
[Round "11"]
[TimeControl "180+1"]
[Date "2022.03.29"]
[WhiteClock "0:01:08"]
[BlackClock "0:00:05"]

1. d4 {[%clk 0:03:00]}  Nf6 {[%clk 0:03:00]} 2. Nc3 {[%clk 0:03:00]}  d5 {[%clk 0:03:00]} 3. Bf4 {[%clk 0:03:00]}  a6 {[%clk 0:03:00]} 4. e3 {[%clk 0:03:00]}  b5 {[%clk 0:03:00]} 5. a3 {[%clk 0:02:59]}  Nbd7 {[%clk 0:02:56]} 6. g4 {[%clk 0:02:54]}  h6 {[%clk 0:02:53]} 7. Bg2 {[%clk 0:02:54]}  Nb6 {[%clk 0:02:51]} 8. h3 {[%clk 0:02:53]}  e6 {[%clk 0:02:41]} 9. Nf3 {[%clk 0:02:54]}  Bb7 {[%clk 0:02:37]} 10. O-O {[%clk 0:02:48]}  g5 {[%clk 0:02:28]} 11. Bg3 {[%clk 0:02:39]}  h5 {[%clk 0:02:20]} 12. Nxg5 {[%clk 0:02:35]}  hxg4 {[%clk 0:02:20]} 13. hxg4 {[%clk 0:02:33]}  Rg8 {[%clk 0:02:07]} 14. f4 {[%clk 0:02:23]}  Nc4 {[%clk 0:02:06]} 15. Qe2 {[%clk 0:02:14]}  Nxb2 {[%clk 0:02:00]} 16. Nxb5 {[%clk 0:02:13]}  Nc4 {[%clk 0:01:50]} 17. Nc3 {[%clk 0:02:11]}  c5 {[%clk 0:01:48]} 18. Na4 {[%clk 0:01:55]}  cxd4 {[%clk 0:01:19]} 19. exd4 {[%clk 0:01:56]}  Qa5 {[%clk 0:01:19]} 20. Nxe6 {[%clk 0:01:43]}  fxe6 {[%clk 0:01:19]} 21. Qxe6+ {[%clk 0:01:44]}  Be7 {[%clk 0:01:19]} 22. Rae1 {[%clk 0:01:41]}  Ne4 {[%clk 0:00:31]} 23. Bxe4 {[%clk 0:01:28]}  Rg7 {[%clk 0:00:24]} 24. Bg6+ {[%clk 0:01:20]}  Kd8 {[%clk 0:00:24]} 25. f5 {[%clk 0:01:11]}  Bc8 {[%clk 0:00:11]} 26. Qc6 {[%clk 0:01:09]}  Qb5 {[%clk 0:00:05]} 27. Qc7# {[%clk 0:01:08]} 1-0


[Site "https://www.chess.com"]